[Event "*** Titled Tuesday Blitz"]
[Site "Chess.com"]
[Date "2021.04.06"]
[Round "9"]
[White "tylityli"]
[Black "frenchpin"]
[Result "0-1"]
[WhiteElo "2339"]
[BlackElo "2510"]
[TimeControl "180+1"]
[EndTime "11:46:29 PDT"]
[Termination "frenchpin won on time"]

1. d4 {[%clk 0:02:50.5]} 1... e6 {[%clk 0:03:00.9]} 2. c4 {[%clk 0:02:48.2]}
2... Nf6 {[%clk 0:03:00.1]} 3. Nc3 {[%clk 0:02:46.3]} 3... Bb4 {[%clk
0:02:59.7]} 4. e3 {[%clk 0:02:45.1]} 4... O-O {[%clk 0:02:59.2]} 5. Ne2 {[%clk
0:02:45.2]} 5... d5 {[%clk 0:02:58.8]} 6. a3 {[%clk 0:02:45]} 6... Bd6 {[%clk
0:02:58.6]} 7. cxd5 {[%clk 0:02:44.2]} 7... exd5 {[%clk 0:02:58.3]} 8. g3 {[%clk
0:02:44.6]} 8... c6 {[%clk 0:02:52.9]} 9. Bg2 {[%clk 0:02:44.6]} 9... Bf5 {[%clk
0:02:50.8]} 10. O-O {[%clk 0:02:44]} 10... Nbd7 {[%clk 0:02:50.4]} 11. f3 {[%clk
0:02:43.7]} 11... Re8 {[%clk 0:02:46]} 12. Re1 {[%clk 0:02:19.2]} 12... h5
{[%clk 0:02:19.4]} 13. Nf4 {[%clk 0:02:10.1]} 13... g5 {[%clk 0:02:12.6]} 14.
Nd3 {[%clk 0:02:06.6]} 14... g4 {[%clk 0:01:52]} 15. e4 {[%clk 0:01:46.4]} 15...
gxf3 {[%clk 0:01:51.6]} 16. exf5 {[%clk 0:01:46]} 16... fxg2 {[%clk 0:01:41.4]}
17. Kxg2 {[%clk 0:01:40.3]} 17... Qb6 {[%clk 0:01:36.4]} 18. Be3 {[%clk
0:01:11.2]} 18... Re7 {[%clk 0:01:28.5]} 19. Qd2 {[%clk 0:01:09.1]} 19... Rae8
{[%clk 0:01:26.8]} 20. b4 {[%clk 0:01:06]} 20... a5 {[%clk 0:01:12.5]} 21. Rab1
{[%clk 0:01:00.5]} 21... Kh7 {[%clk 0:00:55.8]} 22. Na4 {[%clk 0:00:49.5]} 22...
Qa6 {[%clk 0:00:50.6]} 23. Nac5 {[%clk 0:00:48.9]} 23... Bxc5 {[%clk 0:00:47.8]}
24. Nxc5 {[%clk 0:00:48]} 24... Nxc5 {[%clk 0:00:45.4]} 25. dxc5 {[%clk
0:00:44.5]} 25... axb4 {[%clk 0:00:35.2]} 26. axb4 {[%clk 0:00:38.8]} 26... Ng4
{[%clk 0:00:25.2]} 27. Bd4 {[%clk 0:00:30.6]} 27... Rxe1 {[%clk 0:00:19.5]} 28.
Rxe1 {[%clk 0:00:31.5]} 28... Rxe1 {[%clk 0:00:19.4]} 29. Qxe1 {[%clk
0:00:32.4]} 29... Qa2+ {[%clk 0:00:19.6]} 30. Bf2 {[%clk 0:00:23.8]} 30... Kg7
{[%clk 0:00:19.2]} 31. Qc3+ {[%clk 0:00:20.3]} 31... f6 {[%clk 0:00:15]} 32. Qf3
{[%clk 0:00:19.8]} 32... Qd2 {[%clk 0:00:09.2]} 33. h3 {[%clk 0:00:17.6]} 33...
Nxf2 {[%clk 0:00:07.7]} 34. Qxf2 {[%clk 0:00:18.5]} 34... Qxf2+ {[%clk
0:00:06.3]} 35. Kxf2 {[%clk 0:00:18.2]} 35... Kh6 {[%clk 0:00:07.2]} 36. h4
{[%clk 0:00:17.7]} 36... Kg7 {[%clk 0:00:06.4]} 37. Ke3 {[%clk 0:00:17.6]} 37...
Kf7 {[%clk 0:00:06.6]} 38. Kf4 {[%clk 0:00:15.7]} 38... Ke7 {[%clk 0:00:06.7]}
39. Ke3 {[%clk 0:00:12.7]} 39... Kd7 {[%clk 0:00:06.9]} 40. Kd4 {[%clk 0:00:12]}
40... Kc7 {[%clk 0:00:06.5]} 41. g4 {[%clk 0:00:05.8]} 41... hxg4 {[%clk
0:00:06.9]} 42. h5 {[%clk 0:00:06.1]} 42... g3 {[%clk 0:00:07.5]} 43. Ke3 {[%clk
0:00:05.5]} 43... d4+ {[%clk 0:00:07.9]} 44. Kf3 {[%clk 0:00:05]} 44... d3
{[%clk 0:00:08.4]} 45. h6 {[%clk 0:00:04.2]} 45... d2 {[%clk 0:00:08.8]} 46. Ke2
{[%clk 0:00:01.2]} 46... g2 {[%clk 0:00:08.8]} 47. h7 {[%clk 0:00:01.1]} 47...
d1=Q+ {[%clk 0:00:09]} 48. Kxd1 {[%clk 0:00:01.2]} 48... g1=Q+ {[%clk 0:00:09]}
0-1

[Event "*** Titled Tuesday Blitz"]
[Site "Chess.com"]
[Date "2021.04.06"]
[Round "9"]
[White "Durarbayli"]
[Black "Isajevsky_Anton"]
[Result "0-1"]
[WhiteElo "2718"]
[BlackElo "2579"]
[TimeControl "180+1"]
[EndTime "11:46:30 PDT"]
[Termination "Isajevsky_Anton won on time"]

1. e4 {[%clk 0:02:27.3]} 1... c5 {[%clk 0:02:59.7]} 2. Nf3 {[%clk 0:02:26.1]}
2... d6 {[%clk 0:02:59.8]} 3. d4 {[%clk 0:02:27]} 3... cxd4 {[%clk 0:02:59.8]}
4. Nxd4 {[%clk 0:02:27.9]} 4... Nf6 {[%clk 0:02:59.6]} 5. Nc3 {[%clk 0:02:28.3]}
5... a6 {[%clk 0:02:59.9]} 6. g3 {[%clk 0:02:27]} 6... Bg4 {[%clk 0:02:42.1]} 7.
f3 {[%clk 0:02:24.5]} 7... Bd7 {[%clk 0:02:41.8]} 8. Be3 {[%clk 0:02:22.2]} 8...
Nc6 {[%clk 0:02:38.1]} 9. Qd2 {[%clk 0:02:21.5]} 9... Rc8 {[%clk 0:02:33.1]} 10.
O-O-O {[%clk 0:02:18]} 10... h5 {[%clk 0:02:15.3]} 11. h3 {[%clk 0:02:06.1]}
11... g6 {[%clk 0:02:10.7]} 12. Nxc6 {[%clk 0:01:48.9]} 12... Bxc6 {[%clk
0:02:07.5]} 13. Bd4 {[%clk 0:01:48.3]} 13... Bg7 {[%clk 0:01:59.2]} 14. Kb1
{[%clk 0:01:41.7]} 14... b5 {[%clk 0:01:40.1]} 15. Bd3 {[%clk 0:01:38.5]} 15...
O-O {[%clk 0:01:23.3]} 16. g4 {[%clk 0:01:35]} 16... b4 {[%clk 0:01:18.9]} 17.
Nd5 {[%clk 0:01:10.5]} 17... e5 {[%clk 0:01:02.4]} 18. Bb6 {[%clk 0:01:07.7]}
18... Qd7 {[%clk 0:00:51.5]} 19. Nxf6+ {[%clk 0:01:04.8]} 19... Bxf6 {[%clk
0:00:51.4]} 20. gxh5 {[%clk 0:01:04.8]} 20... Rb8 {[%clk 0:00:42.7]} 21. hxg6
{[%clk 0:00:36]} 21... Rxb6 {[%clk 0:00:31.4]} 22. Qh6 {[%clk 0:00:31.2]} 22...
fxg6 {[%clk 0:00:27]} 23. Bc4+ {[%clk 0:00:30.2]} 23... d5 {[%clk 0:00:19.8]}
24. Rxd5 {[%clk 0:00:19.3]} 24... Bxd5 {[%clk 0:00:19.2]} 25. Bxd5+ {[%clk
0:00:20.2]} 25... Rf7 {[%clk 0:00:18.5]} 26. Qxg6+ {[%clk 0:00:16.3]} 26... Kf8
{[%clk 0:00:18.5]} 27. Bxf7 {[%clk 0:00:06.6]} 27... Qxf7 {[%clk 0:00:17.8]} 28.
Qg4 {[%clk 0:00:06.8]} 28... Qe6 {[%clk 0:00:14.8]} 29. Qh5 {[%clk 0:00:06.3]}
29... Bg7 {[%clk 0:00:09.2]} 30. h4 {[%clk 0:00:06.1]} 30... a5 {[%clk
0:00:07.1]} 31. Qg5 {[%clk 0:00:04.9]} 31... a4 {[%clk 0:00:07.1]} 32. Qd8+
{[%clk 0:00:04]} 32... Kf7 {[%clk 0:00:07.3]} 33. Rd1 {[%clk 0:00:04.3]} 33...
Rb7 {[%clk 0:00:04.1]} 34. h5 {[%clk 0:00:03.7]} 34... b3 {[%clk 0:00:03.9]} 35.
cxb3 {[%clk 0:00:04]} 35... axb3 {[%clk 0:00:04.3]} 36. a4 {[%clk 0:00:04.9]}
36... Qc6 {[%clk 0:00:03.5]} 37. Rc1 {[%clk 0:00:02.6]} 37... Qe6 {[%clk
0:00:02.3]} 38. Qd5 {[%clk 0:00:02.1]} 38... Qxd5 {[%clk 0:00:02.3]} 39. exd5
{[%clk 0:00:03]} 39... Ra7 {[%clk 0:00:02.8]} 40. Rc4 {[%clk 0:00:02.4]} 40...
Ke7 {[%clk 0:00:03.2]} 41. Rg4 {[%clk 0:00:01.5]} 41... Bh6 {[%clk 0:00:03]} 42.
Rg6 {[%clk 0:00:01.3]} 42... Bf4 {[%clk 0:00:03.1]} 43. h6 {[%clk 0:00:01.5]}
43... Kf8 {[%clk 0:00:03.1]} 0-1

[Event "*** Titled Tuesday Blitz"]
[Site "Chess.com"]
[Date "2021.04.06"]
[Round "9"]
[White "noblerone"]
[Black "chescomhuynya"]
[Result "0-1"]
[WhiteElo "2400"]
[BlackElo "2568"]
[TimeControl "180+1"]
[EndTime "11:46:31 PDT"]
[Termination "chescomhuynya won on time"]

1. d4 {[%clk 0:03:00.9]} 1... Nf6 {[%clk 0:02:59.9]} 2. Nf3 {[%clk 0:03:00.5]}
2... g6 {[%clk 0:02:59.8]} 3. Bg5 {[%clk 0:03:01]} 3... Bg7 {[%clk 0:02:59.3]}
4. Nbd2 {[%clk 0:03:00.4]} 4... d5 {[%clk 0:02:58.3]} 5. e3 {[%clk 0:02:59.4]}
5... O-O {[%clk 0:02:58.7]} 6. Be2 {[%clk 0:02:57.6]} 6... c5 {[%clk 0:02:59.3]}
7. c3 {[%clk 0:02:56.5]} 7... Nc6 {[%clk 0:02:59.4]} 8. O-O {[%clk 0:02:56.9]}
8... h6 {[%clk 0:02:58.8]} 9. Bh4 {[%clk 0:02:56.8]} 9... g5 {[%clk 0:02:56]}
10. Bg3 {[%clk 0:02:56.7]} 10... Nh5 {[%clk 0:02:56.5]} 11. dxc5 {[%clk
0:02:48.5]} 11... Nxg3 {[%clk 0:02:56.6]} 12. hxg3 {[%clk 0:02:48.7]} 12... a5
{[%clk 0:02:53.5]} 13. a4 {[%clk 0:02:48.4]} 13... e5 {[%clk 0:02:53.1]} 14. Nb3
{[%clk 0:02:38.9]} 14... Be6 {[%clk 0:02:51.3]} 15. Qc2 {[%clk 0:02:30.4]} 15...
f5 {[%clk 0:02:50.7]} 16. Rad1 {[%clk 0:02:25.3]} 16... g4 {[%clk 0:02:47.5]}
17. Nh4 {[%clk 0:02:18.4]} 17... Qf6 {[%clk 0:02:30.1]} 18. Bb5 {[%clk 0:01:46]}
18... f4 {[%clk 0:02:20.9]} 19. Qg6 {[%clk 0:01:35.6]} 19... d4 {[%clk
0:01:49.2]} 20. Nd2 {[%clk 0:00:52.5]} 20... Qxg6 {[%clk 0:01:00]} 21. Nxg6
{[%clk 0:00:52.3]} 21... Rf6 {[%clk 0:01:00.5]} 22. Nh4 {[%clk 0:00:37.5]} 22...
dxe3 {[%clk 0:00:47.2]} 23. fxe3 {[%clk 0:00:36.5]} 23... fxe3 {[%clk
0:00:47.7]} 24. Ne4 {[%clk 0:00:34]} 24... Rxf1+ {[%clk 0:00:43.7]} 25. Kxf1
{[%clk 0:00:29.2]} 25... Na7 {[%clk 0:00:30.8]} 26. Ke2 {[%clk 0:00:23.5]} 26...
Nxb5 {[%clk 0:00:30.9]} 27. axb5 {[%clk 0:00:24.4]} 27... Bc4+ {[%clk
0:00:27.8]} 28. Kxe3 {[%clk 0:00:24.9]} 28... Bxb5 {[%clk 0:00:28.3]} 29. Nf5
{[%clk 0:00:23.3]} 29... Bf8 {[%clk 0:00:28.5]} 30. Nf6+ {[%clk 0:00:21.4]}
30... Kf7 {[%clk 0:00:28.3]} 31. Ne4 {[%clk 0:00:18.4]} 31... Bc6 {[%clk
0:00:27.4]} 32. Nfd6+ {[%clk 0:00:18.1]} 32... Ke6 {[%clk 0:00:25.2]} 33. Rf1
{[%clk 0:00:18]} 33... Be7 {[%clk 0:00:22.1]} 34. Rh1 {[%clk 0:00:17.9]} 34...
Rh8 {[%clk 0:00:17.7]} 35. Rf1 {[%clk 0:00:16.8]} 35... a4 {[%clk 0:00:17.5]}
36. Rh1 {[%clk 0:00:16.6]} 36... h5 {[%clk 0:00:17]} 37. Rf1 {[%clk 0:00:15.7]}
37... b6 {[%clk 0:00:10.7]} 38. Nc4 {[%clk 0:00:04.7]} 38... bxc5 {[%clk
0:00:08.4]} 39. Ncd2 {[%clk 0:00:04.8]} 39... Rb8 {[%clk 0:00:06.7]} 40. Rh1
{[%clk 0:00:04.6]} 40... Rxb2 {[%clk 0:00:06.4]} 41. Rxh5 {[%clk 0:00:04.8]}
41... a3 {[%clk 0:00:06.1]} 42. Rh6+ {[%clk 0:00:04]} 42... Kd7 {[%clk
0:00:06.6]} 43. Rh1 {[%clk 0:00:02.5]} 43... a2 {[%clk 0:00:06.6]} 44. Ra1
{[%clk 0:00:02.9]} 44... Bd5 {[%clk 0:00:06.2]} 45. c4 {[%clk 0:00:03.4]} 45...
Be6 {[%clk 0:00:03.5]} 46. Nc3 {[%clk 0:00:03.3]} 46... Bg5+ {[%clk 0:00:03.7]}
0-1

[Event "*** Titled Tuesday Blitz"]
[Site "Chess.com"]
[Date "2021.04.06"]
[Round "9"]
[White "Matols"]
[Black "TooOldTooSlow70"]
[Result "0-1"]
[WhiteElo "2316"]
[BlackElo "2497"]
[TimeControl "180+1"]
[EndTime "11:46:31 PDT"]
[Termination "TooOldTooSlow70 won on time"]

1. d4 {[%clk 0:03:00.9]} 1... g6 {[%clk 0:02:51.3]} 2. c4 {[%clk 0:03:00.4]}
2... Bg7 {[%clk 0:02:50.6]} 3. g3 {[%clk 0:03:00.6]} 3... d6 {[%clk 0:02:50.7]}
4. Bg2 {[%clk 0:03:00.6]} 4... h5 {[%clk 0:02:43.2]} 5. Nf3 {[%clk 0:02:55.9]}
5... Nh6 {[%clk 0:02:39.2]} 6. Bg5 {[%clk 0:02:49.7]} 6... Nd7 {[%clk
0:02:22.8]} 7. Nc3 {[%clk 0:02:47.5]} 7... Nf6 {[%clk 0:02:18.7]} 8. Qd2 {[%clk
0:02:42.9]} 8... Nf5 {[%clk 0:02:17.7]} 9. e4 {[%clk 0:02:37.9]} 9... Nh6 {[%clk
0:02:16.8]} 10. O-O-O {[%clk 0:02:33.6]} 10... c6 {[%clk 0:02:11]} 11. Rhe1
{[%clk 0:02:28.5]} 11... Bg4 {[%clk 0:01:56]} 12. h3 {[%clk 0:02:25.7]} 12...
Bxf3 {[%clk 0:01:55.8]} 13. Bxf3 {[%clk 0:02:25.8]} 13... e5 {[%clk 0:01:55.1]}
14. Kb1 {[%clk 0:02:11.1]} 14... Nhg8 {[%clk 0:01:45.6]} 15. Qe3 {[%clk
0:01:51.7]} 15... Qe7 {[%clk 0:01:26.6]} 16. dxe5 {[%clk 0:01:47.4]} 16... dxe5
{[%clk 0:01:27.5]} 17. Rd2 {[%clk 0:01:37.6]} 17... Bh6 {[%clk 0:01:26.8]} 18.
Bxh6 {[%clk 0:01:29.5]} 18... Nxh6 {[%clk 0:01:24.6]} 19. Red1 {[%clk
0:01:28.7]} 19... Nhg8 {[%clk 0:01:24]} 20. Na4 {[%clk 0:01:17.7]} 20... Kf8
{[%clk 0:01:14.7]} 21. Nc5 {[%clk 0:01:09.3]} 21... Kg7 {[%clk 0:01:13.8]} 22.
h4 {[%clk 0:00:55.2]} 22... Nh6 {[%clk 0:01:08.7]} 23. Nd7 {[%clk 0:00:28.9]}
23... Rhd8 {[%clk 0:01:03.4]} 24. Qg5 {[%clk 0:00:18.9]} 24... Re8 {[%clk
0:00:36.1]} 25. Bxh5 {[%clk 0:00:17.3]} 25... Nxd7 {[%clk 0:00:31]} 26. Rxd7
{[%clk 0:00:14.2]} 26... Qxg5 {[%clk 0:00:27.9]} 27. hxg5 {[%clk 0:00:13.1]}
27... Ng8 {[%clk 0:00:18.6]} 28. Bg4 {[%clk 0:00:12.6]} 28... Rab8 {[%clk
0:00:18.4]} 29. Rc7 {[%clk 0:00:12.2]} 29... Re7 {[%clk 0:00:18]} 30. Rdd7
{[%clk 0:00:10.7]} 30... Rxd7 {[%clk 0:00:17.7]} 31. Rxd7 {[%clk 0:00:10.8]}
31... Kf8 {[%clk 0:00:18.2]} 32. Kc2 {[%clk 0:00:10.7]} 32... Ne7 {[%clk
0:00:17.3]} 33. Kc3 {[%clk 0:00:10]} 33... a5 {[%clk 0:00:13.9]} 34. a3 {[%clk
0:00:09.4]} 34... b5 {[%clk 0:00:13.2]} 35. b4 {[%clk 0:00:08.5]} 35... axb4+
{[%clk 0:00:12.4]} 36. axb4 {[%clk 0:00:08.1]} 36... Ng8 {[%clk 0:00:09.4]} 37.
cxb5 {[%clk 0:00:07.1]} 37... cxb5 {[%clk 0:00:10.3]} 38. Kb3 {[%clk 0:00:06.5]}
38... Ne7 {[%clk 0:00:09.8]} 39. Rc7 {[%clk 0:00:05.5]} 39... Rd8 {[%clk
0:00:09.2]} 40. Rb7 {[%clk 0:00:04.8]} 40... Rd3+ {[%clk 0:00:08.9]} 41. Kc2
{[%clk 0:00:04.6]} 41... Rd4 {[%clk 0:00:09.8]} 42. Rxb5 {[%clk 0:00:04.2]}
42... Rxe4 {[%clk 0:00:10.1]} 43. Bf3 {[%clk 0:00:04.5]} 43... Rc4+ {[%clk
0:00:10.3]} 44. Kb3 {[%clk 0:00:03.5]} 44... Rd4 {[%clk 0:00:11.2]} 45. Rb8+
{[%clk 0:00:03.2]} 45... Kg7 {[%clk 0:00:10.6]} 46. Kc3 {[%clk 0:00:02.1]} 46...
Rd7 {[%clk 0:00:07.3]} 47. Rb7 {[%clk 0:00:01.6]} 47... Nd5+ {[%clk 0:00:04.6]}
0-1

[Event "*** Titled Tuesday Blitz"]
[Site "Chess.com"]
[Date "2021.04.06"]
[Round "9"]
[White "DonBroca"]
[Black "if_name_main_a"]
[Result "0-1"]
[WhiteElo "2208"]
[BlackElo "2330"]
[TimeControl "180+1"]
[EndTime "11:46:31 PDT"]
[Termination "if_name_main_a won by checkmate"]

1. e4 {[%clk 0:02:30.5]} 1... e6 {[%clk 0:02:59.6]} 2. d4 {[%clk 0:02:27.5]}
2... d5 {[%clk 0:02:59.9]} 3. exd5 {[%clk 0:02:28.4]} 3... exd5 {[%clk
0:03:00.2]} 4. Bd3 {[%clk 0:02:28.9]} 4... Bd6 {[%clk 0:02:56.5]} 5. Ne2 {[%clk
0:02:26.7]} 5... Ne7 {[%clk 0:02:56.7]} 6. Bf4 {[%clk 0:02:26.8]} 6... O-O
{[%clk 0:02:53.2]} 7. O-O {[%clk 0:02:25.7]} 7... c6 {[%clk 0:02:53.5]} 8. c3
{[%clk 0:02:21.9]} 8... Qc7 {[%clk 0:02:47.1]} 9. Qd2 {[%clk 0:02:16.7]} 9...
Nd7 {[%clk 0:02:44.3]} 10. Na3 {[%clk 0:02:15.8]} 10... Nf6 {[%clk 0:02:43.2]}
11. Nc2 {[%clk 0:02:13.4]} 11... Ng6 {[%clk 0:02:30.3]} 12. Bxd6 {[%clk
0:02:12.7]} 12... Qxd6 {[%clk 0:02:30.4]} 13. Ne3 {[%clk 0:02:08.1]} 13... Ne4
{[%clk 0:02:30.6]} 14. Qc2 {[%clk 0:02:07.4]} 14... Re8 {[%clk 0:02:27.5]} 15.
Rfe1 {[%clk 0:01:52.8]} 15... Bd7 {[%clk 0:02:18.1]} 16. f3 {[%clk 0:01:48]}
16... Ng5 {[%clk 0:01:59.9]} 17. Nf5 {[%clk 0:01:24.3]} 17... Qf6 {[%clk
0:01:54.2]} 18. a3 {[%clk 0:01:01.9]} 18... Bxf5 {[%clk 0:01:30.9]} 19. Bxf5
{[%clk 0:01:00.4]} 19... Nh4 {[%clk 0:01:31.6]} 20. Bg4 {[%clk 0:00:38.2]} 20...
g6 {[%clk 0:00:59.5]} 21. Ng3 {[%clk 0:00:14.3]} 21... h5 {[%clk 0:00:55.9]} 22.
Rxe8+ {[%clk 0:00:14.8]} 22... Rxe8 {[%clk 0:00:55.7]} 23. Bxh5 {[%clk 0:00:15]}
23... gxh5 {[%clk 0:00:55]} 24. Nxh5 {[%clk 0:00:15.9]} 24... Qe6 {[%clk
0:00:27.7]} 25. Qf2 {[%clk 0:00:13.9]} 25... Qe3 {[%clk 0:00:26.2]} 26. f4
{[%clk 0:00:11.5]} 26... Qxf2+ {[%clk 0:00:25.2]} 27. Kxf2 {[%clk 0:00:11.5]}
27... Ne4+ {[%clk 0:00:25.4]} 28. Kf1 {[%clk 0:00:07.8]} 28... Nf5 {[%clk
0:00:24.3]} 29. g4 {[%clk 0:00:07.1]} 29... Ne3+ {[%clk 0:00:24.7]} 30. Kg1
{[%clk 0:00:06.6]} 30... Nxg4 {[%clk 0:00:25.1]} 31. h3 {[%clk 0:00:06.6]} 31...
Ne3 {[%clk 0:00:23.7]} 32. Re1 {[%clk 0:00:06.1]} 32... Nf5 {[%clk 0:00:22.7]}
33. Rxe4 {[%clk 0:00:05.6]} 33... dxe4 {[%clk 0:00:23.2]} 34. Nf6+ {[%clk
0:00:05.6]} 34... Kf8 {[%clk 0:00:24]} 35. Nxe8 {[%clk 0:00:06]} 35... Kxe8
{[%clk 0:00:24.9]} 36. Kf2 {[%clk 0:00:06.3]} 36... Ke7 {[%clk 0:00:25.2]} 37.
h4 {[%clk 0:00:06.9]} 37... Kf6 {[%clk 0:00:25.7]} 38. h5 {[%clk 0:00:07.8]}
38... Kg7 {[%clk 0:00:26.3]} 39. Ke2 {[%clk 0:00:07.4]} 39... Kh6 {[%clk
0:00:27.2]} 40. c4 {[%clk 0:00:07.3]} 40... Kxh5 {[%clk 0:00:27.8]} 41. d5
{[%clk 0:00:08.2]} 41... cxd5 {[%clk 0:00:28]} 42. cxd5 {[%clk 0:00:09.1]} 42...
Kg4 {[%clk 0:00:28.1]} 43. b4 {[%clk 0:00:09.6]} 43... Nd6 {[%clk 0:00:28]} 44.
b5 {[%clk 0:00:10.5]} 44... Kxf4 {[%clk 0:00:28.2]} 45. a4 {[%clk 0:00:11.4]}
45... f5 {[%clk 0:00:28.5]} 46. a5 {[%clk 0:00:12.3]} 46... Ke5 {[%clk 0:00:29]}
47. a6 {[%clk 0:00:13.2]} 47... b6 {[%clk 0:00:29]} 48. Kf2 {[%clk 0:00:12.3]}
48... Kxd5 {[%clk 0:00:29.6]} 49. Ke2 {[%clk 0:00:12.9]} 49... f4 {[%clk
0:00:30.1]} 50. Kd2 {[%clk 0:00:13.8]} 50... Nxb5 {[%clk 0:00:30.7]} 51. Ke2
{[%clk 0:00:14.7]} 51... Nc7 {[%clk 0:00:31.3]} 52. Kf2 {[%clk 0:00:15.5]} 52...
Nxa6 {[%clk 0:00:32.2]} 53. Ke2 {[%clk 0:00:16.2]} 53... Nc5 {[%clk 0:00:33]}
54. Kd2 {[%clk 0:00:17.1]} 54... a5 {[%clk 0:00:33.6]} 55. Ke2 {[%clk 0:00:18]}
55... b5 {[%clk 0:00:34.2]} 56. Ke1 {[%clk 0:00:18.9]} 56... Kd4 {[%clk
0:00:34.8]} 57. Ke2 {[%clk 0:00:19.8]} 57... b4 {[%clk 0:00:35.4]} 58. Ke1
{[%clk 0:00:20.7]} 58... a4 {[%clk 0:00:36]} 59. Kd2 {[%clk 0:00:21.6]} 59... b3
{[%clk 0:00:36.5]} 60. Kc1 {[%clk 0:00:21.6]} 60... a3 {[%clk 0:00:36.8]} 61.
Kb1 {[%clk 0:00:21.2]} 61... e3 {[%clk 0:00:36.3]} 62. Ka1 {[%clk 0:00:22.1]}
62... f3 {[%clk 0:00:36.8]} 63. Kb1 {[%clk 0:00:22.5]} 63... f2 {[%clk 0:00:37]}
64. Kc1 {[%clk 0:00:23.4]} 64... Kd3 {[%clk 0:00:33.9]} 65. Kd1 {[%clk
0:00:24.3]} 65... e2+ {[%clk 0:00:33.5]} 66. Kc1 {[%clk 0:00:25.2]} 66... Ne4
{[%clk 0:00:31.3]} 67. Kb1 {[%clk 0:00:26.1]} 67... Kd2 {[%clk 0:00:30.9]} 68.
Ka1 {[%clk 0:00:27]} 68... e1=N {[%clk 0:00:22.7]} 69. Kb1 {[%clk 0:00:27.9]}
69... f1=R {[%clk 0:00:19.5]} 70. Ka1 {[%clk 0:00:28.8]} 70... Nc2# {[%clk
0:00:19.3]} 0-1

[Event "*** Titled Tuesday Blitz"]
[Site "Chess.com"]
[Date "2021.04.06"]
[Round "9"]
[White "alexrustemov"]
[Black "Two_Towers_Krakow"]
[Result "1/2-1/2"]
[WhiteElo "2650"]
[BlackElo "2522"]
[TimeControl "180+1"]
[EndTime "11:46:33 PDT"]
[Termination "Game drawn by repetition"]

1. d4 {[%clk 0:03:00.9]} 1... Nf6 {[%clk 0:02:59]} 2. c4 {[%clk 0:03:00.7]} 2...
e6 {[%clk 0:02:59.2]} 3. Nf3 {[%clk 0:02:58.8]} 3... b6 {[%clk 0:02:58.9]} 4. a3
{[%clk 0:02:58.4]} 4... Ba6 {[%clk 0:02:58.8]} 5. Qc2 {[%clk 0:02:57.7]} 5...
Bb7 {[%clk 0:02:57.5]} 6. Nc3 {[%clk 0:02:56.5]} 6... c5 {[%clk 0:02:56.7]} 7.
dxc5 {[%clk 0:02:55.2]} 7... Bxc5 {[%clk 0:02:56.7]} 8. Bf4 {[%clk 0:02:53.9]}
8... a6 {[%clk 0:02:46.3]} 9. e3 {[%clk 0:02:16.2]} 9... O-O {[%clk 0:02:45.1]}
10. h3 {[%clk 0:02:06.6]} 10... d5 {[%clk 0:02:44.2]} 11. Be2 {[%clk 0:02:00.1]}
11... Nbd7 {[%clk 0:02:29.5]} 12. Rd1 {[%clk 0:01:55.2]} 12... h6 {[%clk
0:02:25.4]} 13. O-O {[%clk 0:01:54.2]} 13... Rc8 {[%clk 0:02:16.1]} 14. b4
{[%clk 0:01:40.6]} 14... Be7 {[%clk 0:02:14.6]} 15. Qb3 {[%clk 0:01:40.6]} 15...
dxc4 {[%clk 0:02:02.8]} 16. Bxc4 {[%clk 0:01:40.2]} 16... b5 {[%clk 0:02:03.3]}
17. Be2 {[%clk 0:01:39.1]} 17... Qb6 {[%clk 0:01:57.3]} 18. Ne5 {[%clk
0:01:31.1]} 18... Nxe5 {[%clk 0:01:53.4]} 19. Bxe5 {[%clk 0:01:32]} 19... Nd5
{[%clk 0:01:34]} 20. Nxd5 {[%clk 0:01:27.4]} 20... Bxd5 {[%clk 0:01:33.1]} 21.
Qb2 {[%clk 0:01:27.9]} 21... f6 {[%clk 0:01:31.8]} 22. Bd4 {[%clk 0:01:26.2]}
22... Qb7 {[%clk 0:01:06.1]} 23. f3 {[%clk 0:01:25.7]} 23... e5 {[%clk
0:01:06.5]} 24. Bc3 {[%clk 0:01:19.6]} 24... Bc4 {[%clk 0:01:06.6]} 25. Be1
{[%clk 0:01:08.9]} 25... e4 {[%clk 0:01:05]} 26. Rd4 {[%clk 0:00:46.8]} 26...
Bxe2 {[%clk 0:00:50.6]} 27. Qxe2 {[%clk 0:00:47.7]} 27... exf3 {[%clk
0:00:50.5]} 28. Qxf3 {[%clk 0:00:47.1]} 28... Qxf3 {[%clk 0:00:48.6]} 29. gxf3
{[%clk 0:00:46]} 29... Rfd8 {[%clk 0:00:48.9]} 30. Rxd8+ {[%clk 0:00:33.7]}
30... Rxd8 {[%clk 0:00:46.8]} 31. Bf2 {[%clk 0:00:30.7]} 31... Rd3 {[%clk
0:00:46]} 32. Ra1 {[%clk 0:00:30.6]} 32... Bd6 {[%clk 0:00:40.4]} 33. Ra2 {[%clk
0:00:29.3]} 33... Be5 {[%clk 0:00:37.5]} 34. Kf1 {[%clk 0:00:29.6]} 34... Rd1+
{[%clk 0:00:25.8]} 35. Ke2 {[%clk 0:00:29.3]} 35... Ra1 {[%clk 0:00:26.3]} 36.
Rxa1 {[%clk 0:00:27.3]} 36... Bxa1 {[%clk 0:00:27.2]} 37. Kd3 {[%clk 0:00:22.3]}
37... Bb2 {[%clk 0:00:26.5]} 38. Kc2 {[%clk 0:00:20.8]} 38... Be5 {[%clk
0:00:13.3]} 39. Kb3 {[%clk 0:00:19.5]} 39... Kf7 {[%clk 0:00:13.6]} 40. a4
{[%clk 0:00:20]} 40... Ke6 {[%clk 0:00:13.9]} 41. axb5 {[%clk 0:00:20.1]} 41...
axb5 {[%clk 0:00:14.8]} 42. Kc2 {[%clk 0:00:19]} 42... f5 {[%clk 0:00:14.8]} 43.
Kd3 {[%clk 0:00:19.3]} 43... h5 {[%clk 0:00:15]} 44. f4 {[%clk 0:00:17.6]} 44...
Bd6 {[%clk 0:00:14.1]} 45. Be1 {[%clk 0:00:17]} 45... Kd5 {[%clk 0:00:14.6]} 46.
Bd2 {[%clk 0:00:17.5]} 46... g6 {[%clk 0:00:14.9]} 47. Be1 {[%clk 0:00:17.8]}
47... Be7 {[%clk 0:00:15.1]} 48. Bd2 {[%clk 0:00:18.2]} 48... Bh4 {[%clk
0:00:15.4]} 49. Bc3 {[%clk 0:00:18.2]} 49... Bf2 {[%clk 0:00:15.2]} 50. Bd2
{[%clk 0:00:18.5]} 50... Bg1 {[%clk 0:00:15]} 51. Bc3 {[%clk 0:00:18.9]} 51...
Bf2 {[%clk 0:00:15.2]} 52. Bd2 {[%clk 0:00:19.2]} 52... Bh4 {[%clk 0:00:15.6]}
53. Bc3 {[%clk 0:00:19.4]} 53... Be7 {[%clk 0:00:16.2]} 54. Bd2 {[%clk
0:00:19.6]} 54... g5 {[%clk 0:00:16.4]} 55. fxg5 {[%clk 0:00:18.4]} 55... Bxg5
{[%clk 0:00:16.8]} 56. Bc3 {[%clk 0:00:16.9]} 56... Be7 {[%clk 0:00:16.6]} 57.
Bd2 {[%clk 0:00:17]} 57... Bd6 {[%clk 0:00:16.7]} 58. Bc3 {[%clk 0:00:17.2]}
58... Be7 {[%clk 0:00:16.8]} 59. Bd2 {[%clk 0:00:17.5]} 59... Bd6 {[%clk
0:00:17]} 60. Bc3 {[%clk 0:00:17.8]} 60... Be7 {[%clk 0:00:17.4]} 1/2-1/2